[Event "*** Titled Tuesday Blitz"]
[Site "Chess.com"]
[Date "2021.02.16"]
[Round "11"]
[White "Shuvalov"]
[Black "olksuna"]
[Result "1/2-1/2"]
[WhiteElo "2545"]
[BlackElo "2678"]
[TimeControl "180+1"]
[EndTime "12:12:22 PST"]
[Termination "Game drawn - insufficient material"]

1. Nf3 {[%clk 0:02:54.6]} 1... Nf6 {[%clk 0:02:59.3]} 2. c4 {[%clk 0:02:53.8]}
2... c5 {[%clk 0:02:59]} 3. g3 {[%clk 0:02:52.6]} 3... b6 {[%clk 0:02:59.1]} 4.
Bg2 {[%clk 0:02:52.5]} 4... Bb7 {[%clk 0:02:59.8]} 5. O-O {[%clk 0:02:53]} 5...
e6 {[%clk 0:03:00.2]} 6. Nc3 {[%clk 0:02:53.2]} 6... Be7 {[%clk 0:03:00.2]} 7.
d4 {[%clk 0:02:53]} 7... cxd4 {[%clk 0:03:00.4]} 8. Qxd4 {[%clk 0:02:53.9]} 8...
d6 {[%clk 0:03:00.5]} 9. Bg5 {[%clk 0:02:50.8]} 9... a6 {[%clk 0:02:58.3]} 10.
Bxf6 {[%clk 0:02:51]} 10... Bxf6 {[%clk 0:02:58.4]} 11. Qf4 {[%clk 0:02:51.3]}
11... O-O {[%clk 0:02:54.3]} 12. Rfd1 {[%clk 0:02:46.6]} 12... Be7 {[%clk
0:02:47.5]} 13. Ne4 {[%clk 0:02:45.5]} 13... Bxe4 {[%clk 0:02:42.1]} 14. Qxe4
{[%clk 0:02:45.4]} 14... Ra7 {[%clk 0:02:42.8]} 15. Nd4 {[%clk 0:02:43.1]} 15...
Rc7 {[%clk 0:02:29.8]} 16. b3 {[%clk 0:02:42.1]} 16... Rc5 {[%clk 0:02:16.6]}
17. a4 {[%clk 0:02:36.8]} 17... Qc7 {[%clk 0:02:12.2]} 18. e3 {[%clk 0:02:24]}
18... Rc8 {[%clk 0:02:09.7]} 19. Ra2 {[%clk 0:02:15.9]} 19... Bf6 {[%clk
0:02:07.8]} 20. Rad2 {[%clk 0:02:14.3]} 20... Nd7 {[%clk 0:02:01.4]} 21. Bf1
{[%clk 0:02:04.7]} 21... Ne5 {[%clk 0:01:41.9]} 22. f4 {[%clk 0:01:35.4]} 22...
Nc6 {[%clk 0:01:18.5]} 23. Nf3 {[%clk 0:01:21.6]} 23... Be7 {[%clk 0:01:14.6]}
24. Qb1 {[%clk 0:01:20.5]} 24... h6 {[%clk 0:01:10.4]} 25. b4 {[%clk 0:01:11.1]}
25... Rf5 {[%clk 0:01:07.6]} 26. Nd4 {[%clk 0:00:15.7]} 26... Nxd4 {[%clk
0:00:54.7]} 27. exd4 {[%clk 0:00:16.6]} 27... a5 {[%clk 0:00:51]} 28. b5 {[%clk
0:00:14.9]} 28... d5 {[%clk 0:00:41]} 29. Bd3 {[%clk 0:00:13.9]} 29... Rh5
{[%clk 0:00:38.4]} 30. Be2 {[%clk 0:00:13.7]} 30... Rf5 {[%clk 0:00:36.5]} 31.
Bg4 {[%clk 0:00:11.8]} 31... dxc4 {[%clk 0:00:33.2]} 32. Bxf5 {[%clk 0:00:11.8]}
32... exf5 {[%clk 0:00:33]} 33. Qxf5 {[%clk 0:00:12]} 33... c3 {[%clk
0:00:33.3]} 34. Rc2 {[%clk 0:00:11.7]} 34... Bb4 {[%clk 0:00:32.1]} 35. Kg2
{[%clk 0:00:11.2]} 35... Re8 {[%clk 0:00:27.8]} 36. Qd3 {[%clk 0:00:10.3]} 36...
Qb7+ {[%clk 0:00:23.2]} 37. Qf3 {[%clk 0:00:09.9]} 37... Qd7 {[%clk 0:00:20.8]}
38. Re2 {[%clk 0:00:08.4]} 38... Rc8 {[%clk 0:00:19.9]} 39. Rc1 {[%clk
0:00:07.9]} 39... Qc7 {[%clk 0:00:16.7]} 40. Rcc2 {[%clk 0:00:07.7]} 40... g6
{[%clk 0:00:14.9]} 41. d5 {[%clk 0:00:07.3]} 41... Qd6 {[%clk 0:00:13.8]} 42.
Qe4 {[%clk 0:00:07.3]} 42... h5 {[%clk 0:00:13.9]} 43. f5 {[%clk 0:00:07]} 43...
Rd8 {[%clk 0:00:11.7]} 44. fxg6 {[%clk 0:00:06.8]} 44... fxg6 {[%clk 0:00:08.6]}
45. Qe6+ {[%clk 0:00:06.7]} 45... Qxe6 {[%clk 0:00:07.4]} 46. dxe6 {[%clk
0:00:07.6]} 46... Kf8 {[%clk 0:00:06.6]} 47. e7+ {[%clk 0:00:07.1]} 47... Bxe7
{[%clk 0:00:06.4]} 48. Rxc3 {[%clk 0:00:08]} 48... Rd7 {[%clk 0:00:06.5]} 49.
Rc6 {[%clk 0:00:07.6]} 49... Bc5 {[%clk 0:00:05.7]} 50. Rxg6 {[%clk 0:00:07.4]}
50... Rd4 {[%clk 0:00:05.9]} 51. Rh6 {[%clk 0:00:05.6]} 51... Rxa4 {[%clk
0:00:05]} 52. Rxh5 {[%clk 0:00:06]} 52... Rb4 {[%clk 0:00:05.6]} 53. Rf5+ {[%clk
0:00:06.1]} 53... Kg7 {[%clk 0:00:05.4]} 54. h4 {[%clk 0:00:06.3]} 54... a4
{[%clk 0:00:05]} 55. h5 {[%clk 0:00:06.5]} 55... a3 {[%clk 0:00:05.5]} 56. g4
{[%clk 0:00:06.6]} 56... Ra4 {[%clk 0:00:04.4]} 57. Kh3 {[%clk 0:00:07]} 57...
a2 {[%clk 0:00:04.4]} 58. Rf1 {[%clk 0:00:07.6]} 58... a1=Q {[%clk 0:00:04.5]}
59. Rxa1 {[%clk 0:00:07.6]} 59... Rxa1 {[%clk 0:00:05.4]} 60. Re6 {[%clk
0:00:07.8]} 60... Rh1+ {[%clk 0:00:04.9]} 61. Kg3 {[%clk 0:00:07.4]} 61... Rg1+
{[%clk 0:00:05.2]} 62. Kh3 {[%clk 0:00:07]} 62... Kf7 {[%clk 0:00:05]} 63. Rg6
{[%clk 0:00:06.2]} 63... Rh1+ {[%clk 0:00:03.1]} 64. Kg3 {[%clk 0:00:06.3]}
64... Rg1+ {[%clk 0:00:04]} 65. Kf4 {[%clk 0:00:05.7]} 65... Rf1+ {[%clk
0:00:03.9]} 66. Ke4 {[%clk 0:00:05.9]} 66... Re1+ {[%clk 0:00:03.7]} 67. Kd5
{[%clk 0:00:06]} 67... Rd1+ {[%clk 0:00:03.5]} 68. Kc6 {[%clk 0:00:06.3]} 68...
Rc1 {[%clk 0:00:04.2]} 69. Kb7 {[%clk 0:00:05.7]} 69... Bd4 {[%clk 0:00:04]} 70.
Rc6 {[%clk 0:00:05.2]} 70... Rb1 {[%clk 0:00:03.4]} 71. Rxb6 {[%clk 0:00:04.9]}
71... Bxb6 {[%clk 0:00:02.3]} 72. Kxb6 {[%clk 0:00:05.8]} 72... Ke6 {[%clk
0:00:02.1]} 73. Kc6 {[%clk 0:00:06]} 73... Rc1+ {[%clk 0:00:02.6]} 74. Kb7
{[%clk 0:00:05.8]} 74... Rg1 {[%clk 0:00:03.5]} 75. b6 {[%clk 0:00:05.7]} 75...
Kd6 {[%clk 0:00:03.9]} 76. h6 {[%clk 0:00:05.3]} 76... Rxg4 {[%clk 0:00:03.5]}
77. h7 {[%clk 0:00:05.5]} 77... Rh4 {[%clk 0:00:04]} 78. Ka8 {[%clk 0:00:05.3]}
78... Rxh7 {[%clk 0:00:02.7]} 79. b7 {[%clk 0:00:05.6]} 79... Rh8+ {[%clk
0:00:01.8]} 80. b8=Q+ {[%clk 0:00:05.7]} 80... Rxb8+ {[%clk 0:00:02.3]} 81. Kxb8
{[%clk 0:00:03.7]} 1/2-1/2

[Event "*** Titled Tuesday Blitz"]
[Site "Chess.com"]
[Date "2021.02.16"]
[Round "11"]
[White "ChessFighter1975"]
[Black "rozabaku"]
[Result "0-1"]
[WhiteElo "2350"]
[BlackElo "2232"]
[TimeControl "180+1"]
[EndTime "12:12:36 PST"]
[Termination "rozabaku won by checkmate"]

1. d4 {[%clk 0:03:00.9]} 1... Nf6 {[%clk 0:02:59.3]} 2. c4 {[%clk 0:02:56.9]}
2... g6 {[%clk 0:02:59.3]} 3. Nc3 {[%clk 0:02:55.9]} 3... d5 {[%clk 0:02:59.3]}
4. Nf3 {[%clk 0:02:54.6]} 4... Bg7 {[%clk 0:02:58.9]} 5. cxd5 {[%clk 0:02:54.9]}
5... Nxd5 {[%clk 0:02:58.7]} 6. Qb3 {[%clk 0:02:55.5]} 6... Nxc3 {[%clk
0:02:57.5]} 7. bxc3 {[%clk 0:02:56.4]} 7... O-O {[%clk 0:02:57.9]} 8. Ba3 {[%clk
0:02:56.4]} 8... b6 {[%clk 0:02:55.3]} 9. e3 {[%clk 0:02:56.5]} 9... Ba6 {[%clk
0:02:54.9]} 10. Bxa6 {[%clk 0:02:54.7]} 10... Nxa6 {[%clk 0:02:55.8]} 11. O-O
{[%clk 0:02:54.8]} 11... c6 {[%clk 0:02:53.6]} 12. Rad1 {[%clk 0:02:51.8]} 12...
Nc7 {[%clk 0:02:52.2]} 13. c4 {[%clk 0:02:51.4]} 13... Re8 {[%clk 0:02:47.5]}
14. e4 {[%clk 0:02:50.9]} 14... b5 {[%clk 0:02:44.3]} 15. d5 {[%clk 0:02:36]}
15... bxc4 {[%clk 0:02:40.8]} 16. Qxc4 {[%clk 0:02:36.9]} 16... cxd5 {[%clk
0:02:40.7]} 17. exd5 {[%clk 0:02:35.5]} 17... Qd7 {[%clk 0:02:39]} 18. d6 {[%clk
0:02:29.6]} 18... Nb5 {[%clk 0:02:13.3]} 19. Qa4 {[%clk 0:02:13.2]} 19... exd6
{[%clk 0:02:09.5]} 20. Rxd6 {[%clk 0:02:01.9]} 20... Qb7 {[%clk 0:01:58]} 21.
Rb1 {[%clk 0:01:52.1]} 21... a6 {[%clk 0:01:43.3]} 22. Rd3 {[%clk 0:01:11.4]}
22... Qe4 {[%clk 0:01:28.4]} 23. Qxe4 {[%clk 0:01:06.1]} 23... Rxe4 {[%clk
0:01:29.3]} 24. Bb2 {[%clk 0:01:00.7]} 24... Rb4 {[%clk 0:01:07.3]} 25. Rb3
{[%clk 0:01:00.1]} 25... Rxb3 {[%clk 0:01:06.2]} 26. axb3 {[%clk 0:01:01]} 26...
Rb8 {[%clk 0:00:59.6]} 27. Bxg7 {[%clk 0:00:58.6]} 27... Kxg7 {[%clk 0:01:00.5]}
28. Ra1 {[%clk 0:00:53.7]} 28... Rb6 {[%clk 0:00:55.9]} 29. h4 {[%clk
0:00:51.8]} 29... Nc7 {[%clk 0:00:51.5]} 30. Ra3 {[%clk 0:00:48.6]} 30... Kf6
{[%clk 0:00:45.4]} 31. Ng5 {[%clk 0:00:42.7]} 31... h6 {[%clk 0:00:43]} 32. Ne4+
{[%clk 0:00:43.2]} 32... Ke5 {[%clk 0:00:41.5]} 33. f3 {[%clk 0:00:41.3]} 33...
f5 {[%clk 0:00:34.7]} 34. Nc5 {[%clk 0:00:40.5]} 34... Kd4 {[%clk 0:00:34.7]}
35. Nd7 {[%clk 0:00:28.9]} 35... Rd6 {[%clk 0:00:26.8]} 36. Nb8 {[%clk
0:00:25.5]} 36... Kc3 {[%clk 0:00:23.5]} 37. Kf2 {[%clk 0:00:23.6]} 37... Kb4
{[%clk 0:00:23.7]} 38. Ra1 {[%clk 0:00:22.7]} 38... Kxb3 {[%clk 0:00:23.4]} 39.
Rb1+ {[%clk 0:00:23.1]} 39... Kc2 {[%clk 0:00:20.7]} 40. Ra1 {[%clk 0:00:23.2]}
40... Kb3 {[%clk 0:00:15.3]} 41. Ke3 {[%clk 0:00:22]} 41... Kb2 {[%clk
0:00:15.4]} 42. Ra5 {[%clk 0:00:21.2]} 42... Kb3 {[%clk 0:00:13.1]} 43. Ra1
{[%clk 0:00:20.2]} 43... Kb4 {[%clk 0:00:13.1]} 44. Rb1+ {[%clk 0:00:20.4]}
44... Ka5 {[%clk 0:00:13.4]} 45. Rc1 {[%clk 0:00:20.2]} 45... Nb5 {[%clk
0:00:13.3]} 46. Nc6+ {[%clk 0:00:20]} 46... Kb6 {[%clk 0:00:13.3]} 47. Ne7
{[%clk 0:00:20.2]} 47... Re6+ {[%clk 0:00:11.9]} 48. Kf2 {[%clk 0:00:19.2]}
48... Rxe7 {[%clk 0:00:12.8]} 49. h5 {[%clk 0:00:19.9]} 49... g5 {[%clk
0:00:12.8]} 50. Rd1 {[%clk 0:00:19.9]} 50... Re6 {[%clk 0:00:12.5]} 51. Rd8
{[%clk 0:00:19.7]} 51... a5 {[%clk 0:00:13]} 52. Rg8 {[%clk 0:00:19.7]} 52... a4
{[%clk 0:00:12.9]} 53. Rg6 {[%clk 0:00:20.6]} 53... Nc7 {[%clk 0:00:09.5]} 54.
Rg8 {[%clk 0:00:19.9]} 54... a3 {[%clk 0:00:08.8]} 55. Rb8+ {[%clk 0:00:20.2]}
55... Ka7 {[%clk 0:00:08.5]} 56. Rb1 {[%clk 0:00:21.1]} 56... Ra6 {[%clk
0:00:08.7]} 57. Ra1 {[%clk 0:00:20.7]} 57... a2 {[%clk 0:00:09.6]} 58. Ke3
{[%clk 0:00:21.6]} 58... Nb5 {[%clk 0:00:09.7]} 59. Kd3 {[%clk 0:00:21.7]} 59...
Kb6 {[%clk 0:00:10.3]} 60. Kc4 {[%clk 0:00:21.4]} 60... Ra8 {[%clk 0:00:11.2]}
61. Kb4 {[%clk 0:00:21]} 61... Nd4 {[%clk 0:00:10.7]} 62. Kc3 {[%clk 0:00:20.1]}
62... Ne2+ {[%clk 0:00:10.6]} 63. Kb4 {[%clk 0:00:19.8]} 63... Ng3 {[%clk
0:00:11.5]} 64. Kb3 {[%clk 0:00:18.5]} 64... Nxh5 {[%clk 0:00:11.7]} 65. Kc4
{[%clk 0:00:18.2]} 65... Ng3 {[%clk 0:00:11.9]} 66. Kd5 {[%clk 0:00:17.9]} 66...
h5 {[%clk 0:00:12.1]} 67. Ke5 {[%clk 0:00:17.9]} 67... f4 {[%clk 0:00:12.8]} 68.
Kf6 {[%clk 0:00:17.2]} 68... Ne2 {[%clk 0:00:13.5]} 69. Kxg5 {[%clk 0:00:16.9]}
69... Nd4 {[%clk 0:00:13.8]} 70. Kxf4 {[%clk 0:00:16.9]} 70... Nc2 {[%clk
0:00:14.7]} 71. Rxa2 {[%clk 0:00:17.1]} 71... Rxa2 {[%clk 0:00:13.8]} 72. Kg5
{[%clk 0:00:18]} 72... Ne3 {[%clk 0:00:13.6]} 73. g4 {[%clk 0:00:16.2]} 73...
hxg4 {[%clk 0:00:13.4]} 74. fxg4 {[%clk 0:00:17.1]} 74... Rg2 {[%clk 0:00:13.1]}
75. Kf4 {[%clk 0:00:17]} 75... Nxg4 {[%clk 0:00:14]} 76. Kf5 {[%clk 0:00:16.9]}
76... Rg1 {[%clk 0:00:14.6]} 77. Kf4 {[%clk 0:00:17.1]} 77... Kc5 {[%clk
0:00:15.5]} 78. Kf3 {[%clk 0:00:17.3]} 78... Kd4 {[%clk 0:00:16.3]} 79. Kf4
{[%clk 0:00:17.5]} 79... Ne5 {[%clk 0:00:16.5]} 80. Kf5 {[%clk 0:00:16.7]} 80...
Rf1+ {[%clk 0:00:17.4]} 81. Ke6 {[%clk 0:00:17.6]} 81... Ke4 {[%clk 0:00:17.4]}
82. Kd6 {[%clk 0:00:17.6]} 82... Nc4+ {[%clk 0:00:17.4]} 83. Kc5 {[%clk
0:00:17.6]} 83... Kd3 {[%clk 0:00:18.1]} 84. Kb4 {[%clk 0:00:18.5]} 84... Rf4
{[%clk 0:00:18.3]} 85. Kc5 {[%clk 0:00:18.6]} 85... Ne5 {[%clk 0:00:18.3]} 86.
Kd6 {[%clk 0:00:18.4]} 86... Re4 {[%clk 0:00:19.2]} 87. Kd5 {[%clk 0:00:18]}
87... Ng4 {[%clk 0:00:18.4]} 88. Kd6 {[%clk 0:00:17.5]} 88... Kd4 {[%clk
0:00:18.8]} 89. Kc6 {[%clk 0:00:17.5]} 89... Re5 {[%clk 0:00:19.7]} 90. Kd6
{[%clk 0:00:17.7]} 90... Ne3 {[%clk 0:00:20.3]} 91. Kc6 {[%clk 0:00:17.6]} 91...
Nc4 {[%clk 0:00:21.2]} 92. Kc7 {[%clk 0:00:17.4]} 92... Kc5 {[%clk 0:00:21.6]}
93. Kd7 {[%clk 0:00:17.3]} 93... Nb6+ {[%clk 0:00:22.1]} 94. Kd8 {[%clk
0:00:16.7]} 94... Re6 {[%clk 0:00:22]} 95. Kc7 {[%clk 0:00:16]} 95... Re7+
{[%clk 0:00:21.8]} 96. Kd8 {[%clk 0:00:16.9]} 96... Rh7 {[%clk 0:00:20.6]} 97.
Ke8 {[%clk 0:00:17]} 97... Kd6 {[%clk 0:00:21.1]} 98. Kf8 {[%clk 0:00:16.7]}
98... Ke6 {[%clk 0:00:21.6]} 99. Kg8 {[%clk 0:00:17]} 99... Rb7 {[%clk
0:00:22.1]} 100. Kf8 {[%clk 0:00:17.9]} 100... Nd5 {[%clk 0:00:21.5]} 101. Kg8
{[%clk 0:00:18.1]} 101... Kf6 {[%clk 0:00:21.9]} 102. Kh8 {[%clk 0:00:18.1]}
102... Kg6 {[%clk 0:00:22.3]} 103. Kg8 {[%clk 0:00:18.5]} 103... Rb8# {[%clk
0:00:22.8]} 0-1

[Event "*** Titled Tuesday Blitz"]
[Site "Chess.com"]
[Date "2021.02.16"]
[Round "11"]
[White "HElissalt"]
[Black "pavelalexandru07"]
[Result "1/2-1/2"]
[WhiteElo "2209"]
[BlackElo "2310"]
[TimeControl "180+1"]
[EndTime "12:14:05 PST"]
[Termination "Game drawn by repetition"]

1. d4 {[%clk 0:03:00.9]} 1... Nf6 {[%clk 0:02:47]} 2. c4 {[%clk 0:03:00]} 2...
c5 {[%clk 0:02:46.6]} 3. d5 {[%clk 0:02:54.5]} 3... e6 {[%clk 0:02:46.2]} 4. Nc3
{[%clk 0:02:53.6]} 4... exd5 {[%clk 0:02:41.7]} 5. cxd5 {[%clk 0:02:54.1]} 5...
d6 {[%clk 0:02:36.7]} 6. Nf3 {[%clk 0:02:54.5]} 6... g6 {[%clk 0:02:33.8]} 7.
Bf4 {[%clk 0:02:53.8]} 7... Bg7 {[%clk 0:02:32.1]} 8. h3 {[%clk 0:02:53.2]} 8...
O-O {[%clk 0:02:31.8]} 9. e3 {[%clk 0:02:53.3]} 9... Ne8 {[%clk 0:02:23]} 10.
Be2 {[%clk 0:02:31.9]} 10... Nd7 {[%clk 0:02:22.4]} 11. O-O {[%clk 0:02:25.2]}
11... Ne5 {[%clk 0:02:22.6]} 12. Bxe5 {[%clk 0:02:10.7]} 12... Bxe5 {[%clk
0:02:16.4]} 13. Nxe5 {[%clk 0:02:04.1]} 13... dxe5 {[%clk 0:02:17.3]} 14. Rc1
{[%clk 0:02:03.8]} 14... Nd6 {[%clk 0:02:14.4]} 15. Nb5 {[%clk 0:01:51.1]} 15...
b6 {[%clk 0:02:05.6]} 16. Nxd6 {[%clk 0:01:50.3]} 16... Qxd6 {[%clk 0:02:03.6]}
17. e4 {[%clk 0:01:47.2]} 17... f5 {[%clk 0:01:57.1]} 18. f3 {[%clk 0:01:44.8]}
18... Bd7 {[%clk 0:01:47.4]} 19. Qd2 {[%clk 0:01:42.4]} 19... f4 {[%clk
0:01:40.7]} 20. Qc3 {[%clk 0:01:35.8]} 20... a5 {[%clk 0:01:17.8]} 21. b3 {[%clk
0:01:25.1]} 21... g5 {[%clk 0:01:16.4]} 22. a4 {[%clk 0:01:02.5]} 22... h5
{[%clk 0:01:12.9]} 23. Rfd1 {[%clk 0:00:51.4]} 23... Ra7 {[%clk 0:01:08.3]} 24.
Rd2 {[%clk 0:00:50.3]} 24... Bc8 {[%clk 0:01:07.2]} 25. Rf1 {[%clk 0:00:31.5]}
25... Rg7 {[%clk 0:01:01.2]} 26. Kf2 {[%clk 0:00:30.7]} 26... g4 {[%clk
0:00:55.9]} 27. hxg4 {[%clk 0:00:29.5]} 27... hxg4 {[%clk 0:00:55.8]} 28. Ke1
{[%clk 0:00:25.9]} 28... g3 {[%clk 0:00:42.5]} 29. Rh1 {[%clk 0:00:24.2]} 29...
Rf6 {[%clk 0:00:39.9]} 30. Rd1 {[%clk 0:00:22.9]} 30... Rh6 {[%clk 0:00:39.5]}
31. Kd2 {[%clk 0:00:23]} 31... Rgh7 {[%clk 0:00:39]} 32. Rhg1 {[%clk 0:00:21.9]}
32... Rh2 {[%clk 0:00:38.2]} 33. Kc1 {[%clk 0:00:20.5]} 33... Kf8 {[%clk
0:00:34.4]} 34. Kb2 {[%clk 0:00:19.1]} 34... Ke7 {[%clk 0:00:33.8]} 35. Kb1
{[%clk 0:00:19]} 35... Kd8 {[%clk 0:00:29.3]} 36. Kc1 {[%clk 0:00:19]} 36... Kc7
{[%clk 0:00:29.5]} 37. Kb1 {[%clk 0:00:19]} 37... R7h6 {[%clk 0:00:29.7]} 38.
Kc1 {[%clk 0:00:19.1]} 38... Qe7 {[%clk 0:00:24.8]} 39. Kb1 {[%clk 0:00:19]}
39... Kd6 {[%clk 0:00:24.7]} 40. Kc1 {[%clk 0:00:18.5]} 40... Qh7 {[%clk
0:00:24]} 41. Qc4 {[%clk 0:00:17.7]} 41... Qb7 {[%clk 0:00:15.1]} 42. Qb5 {[%clk
0:00:15]} 42... Bd7 {[%clk 0:00:14.7]} 43. Qc4 {[%clk 0:00:15.1]} 43... Rh8
{[%clk 0:00:14]} 44. Qc3 {[%clk 0:00:12.1]} 44... Rb8 {[%clk 0:00:13.6]} 45. Bb5
{[%clk 0:00:11.2]} 45... Bxb5 {[%clk 0:00:12.6]} 46. axb5 {[%clk 0:00:11.1]}
46... Qd7 {[%clk 0:00:10.6]} 47. Qc4 {[%clk 0:00:11.2]} 47... Rbh8 {[%clk
0:00:09.9]} 48. Kb2 {[%clk 0:00:09.3]} 48... Qh7 {[%clk 0:00:09.8]} 49. Ka3
{[%clk 0:00:09.3]} 49... Qd7 {[%clk 0:00:09.9]} 50. Ka4 {[%clk 0:00:09.4]} 50...
R8h6 {[%clk 0:00:09.9]} 51. Qc3 {[%clk 0:00:09]} 51... Qh7 {[%clk 0:00:09.5]}
52. Qc4 {[%clk 0:00:09.3]} 52... Rh1 {[%clk 0:00:08.6]} 53. Qc1 {[%clk
0:00:07.7]} 53... Rxg1 {[%clk 0:00:08.4]} 54. Rxg1 {[%clk 0:00:07.8]} 54... Rh2
{[%clk 0:00:08.4]} 55. Ka3 {[%clk 0:00:07.2]} 55... Qg7 {[%clk 0:00:07.5]} 56.
Ka4 {[%clk 0:00:07.6]} 56... Rh6 {[%clk 0:00:07.2]} 57. Ka3 {[%clk 0:00:07.6]}
57... Qd7 {[%clk 0:00:06.9]} 58. Ka4 {[%clk 0:00:08]} 58... Rh7 {[%clk
0:00:06.2]} 59. Qc3 {[%clk 0:00:08.3]} 59... Qe7 {[%clk 0:00:06]} 60. Qc4 {[%clk
0:00:08.8]} 60... Qh4 {[%clk 0:00:06.4]} 61. Qc3 {[%clk 0:00:08.3]} 61... Qh2
{[%clk 0:00:06.6]} 62. Qe1 {[%clk 0:00:08.7]} 62... Qh4 {[%clk 0:00:06.4]} 63.
Qf1 {[%clk 0:00:08.9]} 63... Qf6 {[%clk 0:00:06.5]} 64. Qc4 {[%clk 0:00:07.5]}
64... Rh2 {[%clk 0:00:06.5]} 65. Qf1 {[%clk 0:00:07.4]} 65... Kc7 {[%clk
0:00:06]} 66. Qc4 {[%clk 0:00:07.9]} 66... Qd6 {[%clk 0:00:05.9]} 67. Qc2 {[%clk
0:00:07]} 67... Kd7 {[%clk 0:00:05.6]} 68. Qc4 {[%clk 0:00:07.2]} 68... Ke7
{[%clk 0:00:05.8]} 69. Ka3 {[%clk 0:00:07.5]} 69... Kf6 {[%clk 0:00:05]} 70. Ka4
{[%clk 0:00:08.3]} 70... Kg5 {[%clk 0:00:04.9]} 71. Ka3 {[%clk 0:00:08.7]} 71...
Rh8 {[%clk 0:00:04.6]} 72. Ka4 {[%clk 0:00:08.9]} 72... Rd8 {[%clk 0:00:04.6]}
73. Rh1 {[%clk 0:00:07.3]} 73... Kg6 {[%clk 0:00:03.3]} 74. Rh3 {[%clk
0:00:07.5]} 74... Kg7 {[%clk 0:00:03.5]} 75. Rh4 {[%clk 0:00:07.2]} 75... Rh8
{[%clk 0:00:03]} 76. Rxh8 {[%clk 0:00:07.4]} 76... Kxh8 {[%clk 0:00:03]} 77. Qc3
{[%clk 0:00:07.3]} 77... Kg7 {[%clk 0:00:02.9]} 78. Qc4 {[%clk 0:00:07.6]} 78...
Kf6 {[%clk 0:00:03.1]} 79. Qc3 {[%clk 0:00:08.2]} 79... Ke7 {[%clk 0:00:03.5]}
80. Qd3 {[%clk 0:00:08.5]} 80... Kd7 {[%clk 0:00:03.7]} 81. Qc3 {[%clk
0:00:08.7]} 81... Kc7 {[%clk 0:00:04.2]} 82. Qc4 {[%clk 0:00:09]} 82... Qh6
{[%clk 0:00:04.1]} 83. Qf1 {[%clk 0:00:08.9]} 83... Kd6 {[%clk 0:00:04.1]} 84.
Ka3 {[%clk 0:00:08.9]} 84... Qh2 {[%clk 0:00:04]} 85. Ka4 {[%clk 0:00:09.3]}
85... Kd7 {[%clk 0:00:03.5]} 86. Ka3 {[%clk 0:00:10]} 86... Kc7 {[%clk 0:00:04]}
87. Ka4 {[%clk 0:00:10.2]} 87... Kd6 {[%clk 0:00:04.9]} 88. Ka3 {[%clk
0:00:10.6]} 88... Qh7 {[%clk 0:00:05.3]} 89. Ka4 {[%clk 0:00:11]} 89... Kd7
{[%clk 0:00:05.4]} 90. Ka3 {[%clk 0:00:11.3]} 90... Qh6 {[%clk 0:00:05.9]} 91.
Ka4 {[%clk 0:00:11.9]} 91... Qd6 {[%clk 0:00:06.1]} 92. Ka3 {[%clk 0:00:11.8]}
92... c4+ {[%clk 0:00:06.2]} 93. Kb2 {[%clk 0:00:11.3]} 93... cxb3 {[%clk
0:00:04.8]} 94. Kxb3 {[%clk 0:00:10.6]} 94... Qb4+ {[%clk 0:00:05.2]} 95. Kc2
{[%clk 0:00:09.9]} 95... Kd6 {[%clk 0:00:05.2]} 96. Qd3 {[%clk 0:00:10]} 96...
Qa4+ {[%clk 0:00:05.2]} 97. Kb2 {[%clk 0:00:09.9]} 97... Qb4+ {[%clk 0:00:05.4]}
98. Ka2 {[%clk 0:00:09.1]} 98... Qe1 {[%clk 0:00:04.1]} 99. Qa3+ {[%clk
0:00:08.8]} 99... Kd7 {[%clk 0:00:03.1]} 100. Qb2 {[%clk 0:00:08.2]} 100... Qf2
{[%clk 0:00:03.1]} 101. Ka3 {[%clk 0:00:07.4]} 101... Kd6 {[%clk 0:00:03.3]}
102. Ka2 {[%clk 0:00:06.8]} 102... Kc5 {[%clk 0:00:03.2]} 103. Kb3 {[%clk
0:00:06.7]} 103... Qe3+ {[%clk 0:00:03]} 104. Qc3+ {[%clk 0:00:05.2]} 104...
Qxc3+ {[%clk 0:00:01.7]} 105. Kxc3 {[%clk 0:00:05.6]} 105... Kd6 {[%clk
0:00:01.7]} 106. Kc4 {[%clk 0:00:05.8]} 106... a4 {[%clk 0:00:01.4]} 107. Kb4
{[%clk 0:00:05.8]} 107... a3 {[%clk 0:00:02]} 108. Kxa3 {[%clk 0:00:05.7]}
108... Kc5 {[%clk 0:00:02.7]} 109. Kb3 {[%clk 0:00:05.7]} 109... Kxb5 {[%clk
0:00:02.9]} 110. Kc3 {[%clk 0:00:06.1]} 110... Kc5 {[%clk 0:00:03.4]} 111. Kb3
{[%clk 0:00:06.3]} 111... b5 {[%clk 0:00:03.8]} 112. Kc3 {[%clk 0:00:06.8]}
112... b4+ {[%clk 0:00:04.1]} 113. Kb3 {[%clk 0:00:07.2]} 113... Kd4 {[%clk
0:00:04.8]} 114. d6 {[%clk 0:00:06.8]} 114... Ke3 {[%clk 0:00:05.7]} 115. d7
{[%clk 0:00:07.6]} 115... Kf2 {[%clk 0:00:06.4]} 116. d8=Q {[%clk 0:00:07.7]}
116... Kxg2 {[%clk 0:00:07.1]} 117. Qd3 {[%clk 0:00:07.6]} 117... Kh3 {[%clk
0:00:07.4]} 118. Kxb4 {[%clk 0:00:07.9]} 118... g2 {[%clk 0:00:07.8]} 119. Qd1
{[%clk 0:00:06.4]} 119... Kh2 {[%clk 0:00:08]} 120. Qe2 {[%clk 0:00:06.7]}
120... Kh3 {[%clk 0:00:06.7]} 121. Qf2 {[%clk 0:00:06.5]} 121... Kh2 {[%clk
0:00:07]} 122. Qh4+ {[%clk 0:00:06.6]} 122... Kg1 {[%clk 0:00:06.9]} 123. Qe1+
{[%clk 0:00:06.7]} 123... Kh2 {[%clk 0:00:06.8]} 124. Qh4+ {[%clk 0:00:06.8]}
124... Kg1 {[%clk 0:00:07.2]} 125. Qe1+ {[%clk 0:00:06.9]} 125... Kh2 {[%clk
0:00:07.6]} 126. Qh4+ {[%clk 0:00:07.2]} 1/2-1/2